bitfinex-derivatives/quotes_ETHF0:USTF0_20250730
["timestamp","ask_amount","ask_price","bid_price","bid_amount"]
[1753859421204,0.5847,3821.2,3821.1,0.4346]
[1753859421406,0.4386,3822.0,3821.9,0.52334]
[1753859421612,0.2979,3822.0,3821.9,0.95524]
[1753859422115,1.0436,3822.0,3821.9,0.95394]
[1753859423308,1.0436,3822.0,3821.6,0.52338]
[1753859423309,5.23293083,3822.0,3821.6,0.52338]
[1753859423514,5.23293083,3822.0,3821.7,0.52336]
[1753859423717,1.0436,3821.8,3821.7,0.52336]
[1753859424017,1.7065,3821.8,3821.7,0.52336]
[1753859424217,1.7065,3821.4,3821.3,0.52342]
[1753859424521,6.93970468,3821.4,3821.2,0.52343]
[1753859424711,0.6629,3820.9,3820.8,1.44959]
[1753859424906,1.7065,3820.9,3820.8,1.45159]
[1753859425109,1.2679,3820.9,3820.8,1.74469]
[1753859425710,1.7065,3820.9,3820.8,0.9261]
[1753859425909,1.7065,3820.9,3820.7,0.5235]
[1753859425910,0.6629,3820.9,3820.7,0.5235]
[1753859426121,1.7065,3820.8,3820.7,0.5235]
[1753859426311,1.2679,3820.8,3820.7,1.4529]
[1753859426510,0.793,3820.8,3820.7,1.7447]
[1753859426711,1.7065,3820.8,3820.2,0.4306]
[1753859426906,0.6629,3820.5,3820.4,0.52354]
[1753859427211,1.7065,3820.1,3820.0,1.0191]
[1753859427415,1.7065,3820.1,3820.0,0.5236]
[1753859427809,1.4086,3819.9,3819.8,0.82442488]
[1753859428012,5.2349854,3820.1,3818.2,0.4306]
[1753859428013,11.38597417,3820.1,3818.2,0.4306]
[1753859428309,0.3071,3819.2,3818.5,0.4306]
[1753859428512,0.82162,3819.1,3818.5,0.4319]
[1753859428709,0.605,3818.8,3818.6,0.0013]
[1753859428912,5.84176734,3819.1,3818.8,0.2918]
[1753859429217,0.605,3819.1,3818.2,0.4306]
[1753859429410,5.23676734,3819.1,3819.0,0.7224]
[1753859429712,0.605,3819.2,3819.1,0.4319]
[1753859429916,1.56732,3819.1,3818.8,0.4306]
[1753859430105,5.67564159,3819.5,3818.8,0.4306]
[1753859430308,1.15098877,3819.7,3818.3,5.23704159]
[1753859430513,0.93987227,3820.4,3818.3,5.23704159]
[1753859430514,1.0436,3819.1,3818.5,0.4319]
[1753859430820,1.0436,3818.6,3818.5,0.4306]
[1753859431018,5.23676734,3819.0,3818.2,37.675]
[1753859431312,0.2979,3819.3,3818.5,0.2918]
[1753859431516,0.605,3819.7,3818.9,0.52375]
[1753859431715,0.605,3819.7,3819.1,0.52372]
[1753859431912,5.2375216,3819.8,3819.7,0.81674]
[1753859432215,0.7365,3820.3,3819.8,0.4319]
[1753859432415,1.12857,3820.2,3819.6,0.2918]
[1753859432617,0.605,3820.2,3819.6,1.24735]
[1753859432815,0.605,3820.2,3820.1,0.4306]
[1753859433018,0.605,3820.2,3820.1,0.7237]
[1753859433611,1.0436,3820.2,3819.7,0.0013]
[1753859433811,0.52357,3820.2,3819.7,0.0013]
[1753859434120,5.23539651,3820.1,3820.0,0.2931]
[1753859434315,0.605,3820.4,3820.3,0.52485]
[1753859434615,0.605,3820.4,3819.6,0.2918]
[1753859434817,0.605,3820.2,3819.6,0.2918]
[1753859435016,5.23567062,3820.4,3820.0,0.5236]
[1753859435219,1.36919947,3820.3,3820.1,0.52359]
[1753859435516,0.4386,3820.5,3820.3,0.52356]
[1753859435720,0.7457,3820.5,3820.4,0.4319]
[1753859436119,0.7457,3820.5,3820.3,0.52356]
[1753859436313,0.2979,3820.9,3820.5,0.52353]
[1753859436518,0.7365,3820.7,3820.5,0.52353]
[1753859436713,1.07175563,3820.8,3820.5,0.52353]
[1753859436714,1.0436,3820.6,3820.5,0.95413]
[1753859436920,1.0436,3820.6,3820.5,0.52353]
[1753859437918,1.0436,3820.6,3820.5,0.95413]
[1753859438324,1.0436,3820.6,3820.5,0.95543]
[1753859439024,1.7065,3820.6,3820.5,0.95413]
[1753859439226,1.7065,3820.6,3820.5,0.6307]
[1753859439634,1.7065,3820.6,3820.5,0.2001]
[1753859439826,1.7065,3820.6,3820.5,0.6307]
[1753859440122,1.7065,3820.6,3820.5,0.9281]
[1753859440331,1.7065,3820.6,3820.5,0.9294]
[1753859440516,1.2679,3820.6,3820.5,0.9294]
[1753859440721,1.7065,3821.1,3821.0,1.01896]
[1753859440922,2.47608758,3821.1,3821.0,1.45286]
[1753859441628,2.47608758,3821.1,3821.0,1.45156]
[1753859441817,2.47608758,3821.1,3821.0,1.44956]
[1753859445029,3.40434413,3821.1,3821.0,1.44956]
[1753859445330,3.88589598,3821.1,3821.0,1.44956]
[1753859446229,2.47608758,3821.1,3821.0,1.44956]
[1753859446430,2.47608758,3821.1,3821.0,1.45156]
[1753859446732,0.76958758,3821.1,3821.0,1.45156]
[1753859446928,0.76958758,3821.1,3821.0,1.74466]
[1753859447128,0.30498758,3821.1,3821.0,1.74466]
[1753859447332,1.39732103,3821.4,3821.2,0.52544]
[1753859447631,1.39732103,3821.5,3821.4,0.52671]
[1753859447831,0.2979,3821.8,3821.4,0.52671]
[1753859447832,1.39732103,3821.6,3821.4,0.52541]
[1753859448028,1.39732103,3821.6,3821.5,0.0033]
[1753859448227,1.68358185,3821.6,3821.5,0.0033]
[1753859448429,1.40045066,3821.6,3821.5,0.0033]
[1753859449026,0.2,3821.9,3821.8,0.002]
[1753859449330,0.6931,3821.9,3821.8,0.0033]
[1753859449524,1.6086,3821.9,3821.8,0.0033]
[1753859449838,1.9065,3821.9,3821.8,0.002]
[1753859450228,2.07974454,3821.9,3821.8,0.0033]
[1753859451035,2.37764454,3821.9,3821.8,0.0033]
[1753859451332,2.07974454,3821.9,3821.8,0.0033]
[1753859451930,2.88334454,3821.9,3821.8,0.002]
[1753859452131,3.82684454,3821.9,3821.8,21.265]
[1753859452433,2.76834454,3821.9,3821.8,0.52335]
[1753859452628,0.4889,3821.9,3821.8,0.52335]
[1753859452830,0.2,3821.9,3821.8,0.52335]
[1753859453132,0.5069,3821.9,3821.8,21.78035]
[1753859453332,0.5069,3821.9,3821.8,0.52335]
[1753859453532,0.8019,3821.9,3821.8,21.78035]
[1753859453733,0.2,3821.9,3821.8,22.93133877]
[1753859453936,1e-05,3821.9,3821.8,33.16440652]
[1753859454725,1e-05,3821.9,3821.8,11.90740652]
[1753859455026,0.30691,3821.9,3821.8,21.77535]
[1753859455226,1.24191586,3821.9,3821.8,22.92533877]
[1753859456336,0.30691,3821.9,3821.8,1.67433877]
[1753859456532,0.60191,3821.9,3821.8,22.92533877]
[1753859456724,1e-05,3821.9,3821.8,22.92533877]
[1753859457431,0.93435066,3821.9,3821.8,22.92533877]
[1753859458031,1.24125066,3821.9,3821.8,22.92533877]
[1753859458232,1e-05,3821.9,3821.8,33.15840652]
[1753859458529,1e-05,3821.9,3821.8,6.90740652]
[1753859458733,1.75101,3821.9,3821.8,22.91833877]
[1753859458934,1.29441,3821.9,3821.8,22.91833877]
[1753859459238,2.05868076,3821.9,3821.8,22.91833877]
[1753859459933,1.07118076,3821.9,3821.8,22.91833877]
[1753859460340,0.76428076,3821.9,3821.8,22.91833877]
[1753859460834,1.07118076,3821.9,3821.8,22.91833877]
[1753859462840,1.07118076,3821.9,3821.8,22.88733877]
[1753859463041,0.018,3822.3,3822.2,0.5233]
[1753859463340,0.018,3822.3,3822.2,28.12035652]
[1753859463534,0.3069,3822.7,3822.6,0.52324]
[1753859463734,0.3069,3822.7,3822.6,21.74924]
[1753859463930,0.3069,3822.7,3822.6,22.90022877]
[1753859464938,1.751,3822.7,3822.6,22.90022877]
[1753859465136,1.751,3822.7,3822.6,0.52324]
[1753859465336,1.751,3822.7,3822.6,21.74524]
[1753859466137,1.751,3822.6,3822.5,0.52325]
[1753859466340,1.751,3822.6,3822.5,21.73525]
[1753859467945,1.751,3822.6,3822.5,0.52325]
[1753859468144,1.751,3822.6,3822.5,21.73725]
[1753859468848,1.751,3822.2,3822.1,0.5233]
[1753859469249,1.2944,3822.2,3822.1,21.7273]
[1753859469655,0.3069,3822.5,3822.4,0.52327]
[1753859469851,1.751,3823.0,3822.9,0.5232]
[1753859470049,1.751,3823.0,3822.9,21.7292]
[1753859470453,1.751,3823.0,3822.9,21.7372]
[1753859470955,1.751,3822.9,3822.8,0.52321]
[1753859471150,1.751,3822.9,3822.8,21.73521]
[1753859471347,0.8014,3822.9,3822.8,21.73521]
[1753859471551,0.3069,3822.9,3822.8,21.73521]
[1753859471958,1.751,3822.9,3822.8,21.73721]
[1753859473556,1.751,3822.9,3822.8,0.52321]
[1753859473957,1.751,3822.9,3822.8,21.73021]
[1753859474153,0.3069,3822.9,3822.8,21.73021]
[1753859474359,0.6019,3823.2,3823.1,0.52318]
[1753859474557,0.8036,3823.2,3823.1,21.72618]
[1753859475358,0.8036,3823.2,3823.1,0.52318]
[1753859475556,1.751,3823.2,3823.1,21.72318]
[1753859476759,0.3069,3823.2,3823.1,21.72318]
[1753859476958,0.8036,3823.2,3823.1,21.72318]
[1753859477862,1.2944,3823.2,3823.1,21.71718]
[1753859478061,1.751,3823.2,3823.1,21.71718]
[1753859478264,1.2424,3823.1,3823.0,0.52319]
[1753859478462,1.751,3823.1,3823.0,21.71519]
[1753859478761,1.751,3823.1,3823.0,0.52319]
[1753859478961,1.751,3823.1,3823.0,21.71419]
[1753859479470,1.0585,3823.0,3822.2,1.15098877]
[1753859479662,0.6925,3823.1,3822.2,1.67428877]
[1753859479663,1.751,3822.3,3822.2,1.67428877]
[1753859479963,1.751,3822.3,3822.2,26.95772517]
[1753859480163,1.751,3822.3,3822.2,21.7263]
[1753859480556,1.751,3822.9,3822.8,0.5232]
[1753859480760,1.751,3822.9,3822.8,21.209]
[1753859481156,1.751,3822.9,3822.8,21.73222]
[1753859481361,0.6925,3822.9,3822.8,21.203]
[1753859481867,1.7089,3822.9,3822.8,21.203]
[1753859482269,1.2157,3822.9,3822.3,0.52328]
[1753859482471,0.6956,3822.4,3822.3,0.52328]
[1753859482768,1.712,3822.4,3822.3,0.52328]
[1753859482968,1.712,3822.4,3822.3,21.71928]
[1753859485070,1.2797,3822.4,3822.3,22.87026877]
[1753859485271,0.2944,3823.1,3823.0,0.52319]
[1753859485471,1.4223,3823.1,3823.0,0.52319]
[1753859485967,1.4223,3823.1,3822.3,0.52328]
[1753859485968,0.6956,3822.5,3821.6,5.58845]
[1753859486174,1.712,3822.3,3822.2,0.52329]
[1753859486371,1.15098877,3822.6,3821.8,0.52335]
[1753859486566,1.2797,3821.7,3821.6,0.52338]
[1753859486870,1.712,3821.7,3821.6,21.72138]
[1753859487266,1.712,3821.7,3821.6,21.198]
[1753859487466,0.6956,3821.4,3821.3,0.52342]
[1753859487662,1.712,3821.4,3821.3,21.72042]
[1753859488563,1.712,3821.4,3821.3,21.197]
[1753859488769,1.15098877,3822.2,3821.1,0.52345]
[1753859488770,0.6956,3821.2,3821.1,0.52345]
[1753859488968,1.712,3821.2,3821.1,21.72445]
[1753859489168,0.2944,3821.6,3821.4,0.52341]
[1753859489373,0.2897,3821.5,3821.4,1.67439877]
[1753859489871,0.2897,3821.5,3821.4,0.52341]
[1753859490077,1.712,3821.5,3821.4,0.52341]
[1753859490577,1.712,3821.5,3821.4,21.73141]
[1753859490762,1.712,3821.5,3821.4,0.52341]
[1753859490964,1.712,3821.5,3821.4,21.72841]
[1753859492374,1.712,3821.5,3821.4,0.52341]
[1753859492569,1.712,3821.5,3821.4,21.72841]
[1753859492767,0.6956,3821.5,3821.4,21.196]
[1753859492981,1.712,3821.5,3821.4,21.196]
[1753859493270,1.712,3821.4,3821.3,0.52341]
[1753859493478,1.712,3821.4,3821.3,21.71941]
[1753859494274,1.712,3821.4,3821.3,21.202]
[1753859494474,0.6956,3821.4,3821.1,0.52344]
[1753859494670,1.15098877,3822.4,3821.1,0.52344]
[1753859494671,1.712,3821.2,3821.1,0.52344]
[1753859494871,1.712,3821.2,3821.1,21.72644]
[1753859495673,1.712,3821.2,3821.1,0.52344]
[1753859495875,1.712,3821.2,3821.1,21.72244]
[1753859496071,1.712,3821.2,3821.1,0.52344]
[1753859496371,1.712,3821.2,3820.7,1.15098877]
[1753859496372,1.712,3820.6,3820.5,4.60022028]
[1753859496674,0.2897,3821.0,3820.9,1.33418]
[1753859496872,1.712,3821.4,3821.3,1.33412]
[1753859497078,1.712,3821.4,3821.3,22.56212]
[1753859497575,1.712,3821.4,3821.3,22.0387]
[1753859498074,1.712,3821.4,3821.3,0.3873]
[1753859498273,0.6956,3820.9,3820.7,0.5235]
[1753859498473,1.712,3820.8,3820.7,0.5235]
[1753859498772,1.712,3820.8,3820.7,21.7505]
[1753859498968,1.712,3820.8,3820.7,22.4681]
[1753859499171,0.2897,3820.8,3820.7,23.71218877]
[1753859499674,0.5841,3820.8,3820.7,23.71218877]
[1753859500174,1.712,3820.8,3820.7,22.5712]
[1753859500379,0.2897,3820.8,3820.7,22.5712]
[1753859500586,0.5841,3821.1,3821.0,1.33416]
[1753859500880,0.5841,3821.1,3821.0,2.48514877]
[1753859501179,0.4323,3821.5,3821.0,2.48514877]
[1753859501379,1.712,3821.7,3821.6,0.8107]
[1753859501778,1.712,3821.7,3821.6,22.56108]
[1753859503075,0.7859,3821.7,3821.6,22.56108]
[1753859503275,1.2797,3821.7,3821.6,1.33408]
[1753859503472,1.712,3821.7,3821.6,22.55308]
[1753859503681,1.712,3821.7,3821.6,1.33408]
[1753859503880,1.712,3821.7,3821.6,22.55308]
[1753859504071,1.712,3821.7,3820.7,1.30874]
[1753859504278,1.712,3821.4,3821.3,0.52341]
[1753859504485,1.712,3821.4,3821.3,21.73841]
[1753859504884,1.712,3821.4,3821.3,21.215]
[1753859505086,1.0164,3821.2,3821.1,0.52345]
[1753859505383,1.712,3821.2,3821.1,22.55315]
[1753859505980,1.712,3821.2,3821.1,22.55415]
[1753859506583,1.712,3821.2,3821.1,1.33415]
[1753859506983,1.712,3821.2,3821.1,22.03165]
[1753859507181,1.712,3821.2,3820.7,1.15098877]
[1753859507182,0.4938,3820.8,3820.7,0.7176]
[1753859507493,0.6956,3820.8,3820.7,21.209]
[1753859507990,1.712,3820.7,3820.6,0.81772]
[1753859508192,1.712,3820.7,3820.6,22.54322]
[1753859508384,1.712,3820.7,3820.6,22.02672]
[1753859508584,1.712,3820.7,3820.6,22.45012]
[1753859508992,1.712,3820.7,3820.6,22.54322]
[1753859509289,1.712,3820.7,3820.6,22.54122]
[1753859509485,1.712,3820.7,3820.6,0.52352]
[1753859509680,1.712,3820.7,3820.6,21.73252]
[1753859510489,1.712,3820.7,3820.6,0.52352]
[1753859510686,1.712,3820.7,3820.6,21.73052]
[1753859510988,1.712,3820.7,3820.6,0.52352]
[1753859511182,1.712,3820.7,3820.6,21.202]
[1753859511379,0.6956,3820.7,3820.6,21.201]
[1753859511785,0.6956,3820.7,3820.3,0.94696]
[1753859512093,1.228,3820.4,3820.2,3.26599028]
[1753859512391,1.7294,3820.4,3820.2,3.26599028]
[1753859512578,0.7059,3820.4,3820.3,21.72356]
[1753859512782,0.7059,3820.4,3820.3,22.56206]
[1753859512980,1.15098877,3821.5,3820.7,0.52349]
[1753859513180,0.2791,3820.8,3820.7,22.56199]
[1753859513380,1.2763,3820.8,3820.7,22.56199]
[1753859513591,0.9699,3820.8,3820.7,22.56199]
[1753859514382,1.0235,3821.1,3820.7,0.52349]
[1753859514685,1.2763,3820.8,3820.7,22.56499]
[1753859515084,1.2763,3820.6,3820.3,3.26599028]
[1753859515290,0.7059,3820.6,3820.5,0.7449]
[1753859515590,0.7059,3820.6,3820.5,22.56103]
[1753859515785,1.2763,3820.6,3820.5,22.56103]
[1753859515983,1.2763,3820.6,3820.5,22.57803]
[1753859516184,1.7294,3820.6,3820.5,22.57803]
[1753859517190,1.7294,3820.6,3820.5,22.57203]
[1753859517986,0.2913,3820.9,3820.5,22.0485]
[1753859518192,1.4503,3820.9,3820.8,0.82889]
[1753859518398,1.4503,3820.9,3820.8,22.04089]
[1753859518597,1.7294,3820.8,3820.7,0.52349]
[1753859518891,1.7294,3820.8,3820.7,21.73449]
[1753859519087,1.7294,3820.8,3820.7,21.73149]
[1753859519291,1.7294,3820.7,3820.6,1.36201]
[1753859519491,1.7294,3820.7,3820.6,22.57601]
[1753859520395,1.7294,3820.7,3820.6,22.13651]
[1753859520596,1.7294,3820.7,3820.6,22.57601]
[1753859521000,1.7294,3820.7,3820.6,22.57701]
[1753859521699,1.2763,3820.7,3820.6,22.57701]
[1753859521900,0.7749,3820.7,3820.6,22.57701]
[1753859522101,1.7294,3820.7,3820.6,22.57001]
[1753859522398,0.7059,3820.7,3820.5,0.52353]
[1753859522601,1.7294,3820.6,3820.5,0.52353]
[1753859522801,1.7294,3820.6,3820.5,22.14853]
[1753859522802,1.2763,3820.6,3820.5,22.14853]
[1753859522994,1.2763,3820.6,3820.5,22.58803]
[1753859523196,0.2791,3820.6,3820.5,22.64653]
[1753859523793,0.2791,3821.0,3820.9,1.36198]
[1753859523991,0.9972,3821.5,3821.4,1.36191]
[1753859524199,0.9972,3821.5,3821.4,22.59191]
[1753859524200,1.4503,3821.5,3821.4,22.59191]
[1753859524506,1.2763,3821.5,3821.4,22.59191]
[1753859525191,1.7294,3821.5,3821.4,22.59191]
[1753859525891,1.7294,3821.5,3821.3,0.52342]
[1753859526090,1.7294,3821.5,3821.4,21.223]
[1753859526997,0.7444,3821.2,3821.1,0.52345]
[1753859527204,0.7059,3821.3,3820.6,0.52351]
[1753859527205,0.7444,3820.7,3820.6,0.52351]
[1753859527401,1.7294,3820.7,3820.6,21.74551]
[1753859527893,1.7294,3820.7,3820.6,0.52351]
[1753859528102,1.7294,3820.7,3820.6,22.58651]
[1753859528307,1.5344,3821.2,3821.1,1.36045]
[1753859528500,1.7294,3821.2,3821.1,22.58645]
[1753859528799,1.7294,3821.2,3821.0,0.52346]
[1753859528800,0.7059,3821.2,3821.0,0.52346]
[1753859529006,1.7294,3821.0,3820.9,0.52347]
[1753859529206,1.7294,3821.0,3820.9,21.75047]
[1753859529599,1.7294,3821.0,3820.9,21.74747]
[1753859529906,1.7294,3820.8,3820.7,0.52349]
[1753859530203,1.7294,3820.7,3820.6,0.52351]
[1753859530706,1.7294,3820.4,3820.3,3.26599028]
[1753859530902,1.7294,3820.4,3820.3,24.49299028]
[1753859531198,1.7294,3820.4,3820.3,21.227]
[1753859531400,1.7294,3820.4,3820.3,21.9719]
[1753859531801,1.7294,3820.4,3820.3,22.064]
[1753859532008,1.7294,3820.4,3820.3,22.063]
[1753859532895,1.7294,3820.4,3820.3,22.058]
[1753859533101,0.9699,3820.4,3820.3,22.058]
[1753859533501,1.7294,3820.4,3820.3,22.058]
[1753859533895,1.7294,3820.4,3820.3,0.837]
[1753859534303,1.7294,3820.4,3820.3,22.05]
[1753859535101,1.4503,3820.1,3820.0,0.837]
[1753859535307,1.7294,3820.1,3820.0,22.5706]
[1753859535910,1.7294,3820.1,3820.0,21.7326]
[1753859536110,1.7294,3820.1,3820.0,22.5696]
[1753859536310,1.7294,3820.1,3820.0,22.5676]
[1753859537205,1.0235,3820.0,3819.8,3.45971516]
[1753859537410,1.7294,3819.9,3819.8,3.98334516]
[1753859537607,1.7294,3819.9,3819.8,25.19134516]
[1753859537915,1.7294,3819.9,3819.8,25.41261516]
[1753859538210,1.7294,3819.9,3819.8,25.50471516]
[1753859538409,0.5704,3819.9,3819.8,22.23872488]
[1753859538713,0.2791,3819.9,3819.8,22.23872488]
[1753859539107,0.5704,3819.9,3819.8,22.23872488]
[1753859539307,0.7749,3819.9,3819.8,22.23872488]
[1753859539812,0.9699,3819.9,3819.8,22.23872488]
[1753859540213,0.2791,3819.9,3819.8,22.29632488]
[1753859540508,1.7294,3819.9,3819.8,21.39472488]
[1753859540713,1.7294,3819.9,3819.8,22.23172488]
[1753859541109,0.2791,3819.9,3819.8,22.23172488]
[1753859541305,1.7114,3819.9,3819.8,0.93862488]
[1753859541609,1.7114,3819.9,3819.8,21.41272488]
[1753859541809,1.7114,3819.9,3819.8,0.19372488]
[1753859542411,1.7114,3819.9,3819.8,21.41972488]
[1753859543816,1.7114,3819.9,3819.8,22.24542488]
[1753859544816,1.7114,3819.9,3819.8,22.24442488]
[1753859545011,1.7114,3819.9,3819.8,0.19372488]
[1753859545216,1.7114,3819.9,3819.8,21.40972488]
[1753859545917,1.7114,3819.9,3819.8,0.19372488]
[1753859546118,1.7114,3819.9,3819.8,21.41072488]
[1753859546418,1.7114,3819.9,3819.8,0.19372488]
[1753859547718,2.23501,3819.9,3819.8,0.19372488]
[1753859547909,7.47081768,3819.9,3819.8,0.19372488]
[1753859548108,0.6877,3819.3,3819.2,21.75303821]
[1753859548310,2.2366,3819.3,3819.2,0.01832821]
[1753859548615,8.62339645,3819.3,3819.2,0.01832821]
[1753859548917,8.09969645,3819.3,3819.2,0.01832821]
[1753859549112,6.94870768,3819.3,3819.2,0.54203821]
[1753859549316,1.7129,3819.3,3819.2,0.01832821]
[1753859549515,1.7129,3819.3,3819.2,0.31222821]
[1753859549719,1.7129,3819.3,3819.2,0.84402821]
[1753859549720,0.2994,3819.3,3819.2,0.84402821]
[1753859549920,0.4289,3819.8,3819.2,1.82320821]
[1753859550113,1.4135,3819.8,3819.7,1.34934]
[1753859550422,0.9846,3819.8,3819.7,1.34934]
[1753859550712,1.15098877,3820.5,3819.3,21.223]
[1753859550917,0.52359,3820.1,3819.4,0.437]
[1753859551116,1.284,3819.6,3819.5,0.3877]
[1753859551417,1.7129,3819.5,3819.4,21.228]
[1753859551818,1.7129,3819.5,3819.4,0.8247]
[1753859552014,1.7129,3819.5,3819.4,0.8257]
[1753859552215,0.2994,3819.5,3819.4,0.8843]
[1753859552515,1.1166,3819.5,3819.4,0.8257]
[1753859552719,1.1166,3819.5,3819.2,21.77602821]
[1753859553020,1.7129,3819.3,3819.2,21.25232821]
[1753859553314,1.7129,3819.3,3819.2,0.01832821]
[1753859553520,1.7129,3819.3,3819.2,21.77403821]
[1753859553720,1.7129,3819.3,3819.2,0.54203821]
[1753859554115,1.7129,3819.3,3819.2,1.27293821]
[1753859554321,1.7129,3819.3,3819.2,1.36673821]
[1753859554621,1.7129,3819.3,3819.2,1.42633821]
[1753859554622,0.2994,3819.3,3819.2,1.42633821]
[1753859554816,0.4871,3819.3,3819.2,1.36773821]
[1753859555122,1.7129,3819.3,3819.2,1.36673821]
[1753859555518,1.7129,3819.3,3819.2,22.60373821]
[1753859555824,1.7129,3819.3,3819.2,1.36673821]
[1753859556021,1.7129,3819.3,3819.2,1.36773821]
[1753859556215,0.2994,3819.3,3819.2,1.36773821]
[1753859556620,0.2994,3819.3,3819.2,1.42633821]
[1753859557224,0.2994,3819.3,3819.2,1.36773821]
[1753859557423,0.5963,3819.3,3819.2,1.36773821]
[1753859558123,0.784,3819.3,3819.2,22.60173821]
[1753859559127,1.7129,3819.3,3819.2,1.36773821]
[1753859559428,1.7129,3819.3,3819.2,0.01832821]
[1753859559728,1.7129,3819.3,3819.2,21.23632821]
[1753859559930,1.7129,3819.3,3819.2,22.06102821]
[1753859560226,1.7129,3819.3,3819.2,22.06202821]
[1753859560421,1.284,3819.3,3819.2,0.84402821]
[1753859560625,0.2994,3819.3,3819.2,22.6270918]
[1753859561227,0.2994,3819.3,3819.2,22.6856918]
[1753859563027,0.9796,3819.3,3819.2,22.6270918]
[1753859563228,1.284,3819.3,3819.2,22.6270918]
[1753859563437,1.7129,3819.3,3819.2,22.6270918]
[1753859563741,1.7129,3819.3,3819.2,0.84402821]
[1753859563937,1.7129,3819.3,3819.2,0.01832821]
[1753859564138,1.7129,3819.3,3819.2,21.21632821]
[1753859564742,1.7129,3819.3,3819.2,22.04202821]
[1753859565234,1.7129,3819.3,3819.2,22.04502821]
[1753859565445,1.7129,3819.3,3819.2,0.31222821]
[1753859565645,1.7129,3819.3,3819.2,21.51222821]
[1753859565838,1.7129,3819.3,3819.2,21.21632821]
[1753859566344,1.7129,3819.3,3819.2,22.04202821]
[1753859566844,1.7129,3819.3,3819.2,21.21532821]
[1753859567146,1.7129,3819.3,3819.2,0.45532821]
[1753859567338,1.7129,3819.3,3819.2,22.03702821]
[1753859567541,1.284,3819.3,3819.2,22.03702821]
[1753859567739,1.284,3819.3,3819.2,0.84402821]
[1753859567941,1.284,3819.3,3819.2,22.03502821]
[1753859568644,1.7129,3819.3,3819.2,22.03502821]
[1753859569447,1.7129,3819.3,3819.2,0.01832821]
[1753859569641,1.7129,3819.3,3819.2,21.20032821]
[1753859569839,1.7129,3819.3,3819.2,0.01832821]
[1753859571447,2.28296359,3819.3,3819.2,0.01832821]
[1753859571742,0.7019,3818.7,3818.6,3.26599028]
[1753859571946,1.7734,3818.7,3818.6,3.26599028]
[1753859572640,1.7734,3818.7,3818.5,3.26599028]
[1753859572848,1.7734,3818.6,3818.5,3.98509028]
[1753859573346,1.7734,3818.6,3818.4,21.70081]
[1753859573643,0.5013,3818.0,3817.9,5.58116235]
[1753859573841,0.5013,3818.0,3817.9,27.23016235]
[1753859573842,1.4716,3818.0,3817.9,27.23016235]
[1753859574043,1.7734,3818.0,3817.9,23.14615359]
[1753859574240,1.3125,3818.0,3817.9,23.14615359]
[1753859574540,1.0033,3818.0,3817.9,23.14615359]
[1753859575045,0.3018,3818.0,3817.9,23.20475359]
[1753859575240,0.57006359,3818.9,3817.9,22.68086359]
[1753859575440,1.7734,3818.8,3818.7,1.95603359]
[1753859575645,22.4929,3820.4,3818.9,0.52375]
[1753859575841,22.4929,3820.4,3818.9,0.93825]
[1753859575842,0.7019,3819.0,3818.9,0.93825]
[1753859576047,1.7734,3819.0,3818.9,0.4145]
[1753859576240,1.7734,3819.0,3818.7,0.58906359]
[1753859576241,0.7019,3818.7,3818.6,3.29472063]
[1753859576440,1.7734,3818.7,3818.6,3.29472063]
[1753859576639,1.7734,3818.7,3818.6,0.52379]
[1753859576844,1.7734,3818.6,3818.5,3.81852063]
[1753859577044,0.3088,3818.8,3818.7,0.52378]
[1753859577244,0.3018,3818.8,3818.7,1.38598]
[1753859577646,1.0107,3819.3,3819.2,0.93821]
[1753859577845,1.4716,3819.6,3819.5,1.36687]
[1753859578152,1.4716,3819.6,3819.5,0.2904]
[1753859578447,1.0715,3819.5,3819.4,0.52368]
[1753859578643,1.4716,3819.5,3819.4,1.24278]
[1753859578843,1.7734,3819.5,3819.4,1.36688]
[1753859581840,1.7734,3819.5,3819.4,1.38588]
[1753859582646,1.7734,3819.5,3819.4,1.36688]
[1753859583148,1.7734,3819.5,3819.4,22.52858]
[1753859584250,0.7019,3819.2,3819.1,1.24282]
[1753859584552,1.7734,3819.2,3819.1,22.57192]
[1753859585253,1.7734,3819.2,3819.1,22.56492]
[1753859585552,1.3125,3819.2,3819.1,22.56492]
[1753859586553,1.7734,3819.2,3819.1,22.56492]
[1753859588153,1.7734,3819.2,3819.1,1.38592]
[1753859588453,1.7734,3819.2,3819.1,22.55192]
[1753859590852,1.3125,3819.2,3819.1,22.55192]
[1753859591055,0.3018,3819.2,3819.1,22.61052]
[1753859591257,1.7734,3820.1,3820.0,0.52359]
[1753859592548,1.0037,3820.1,3819.9,0.52361]
[1753859592749,0.7019,3820.0,3819.9,0.52361]
[1753859593056,1.7734,3820.0,3819.9,1.38521]
[1753859593545,1.7734,3820.0,3819.9,0.52361]
[1753859593751,1.7734,3820.0,3819.9,21.66761]
[1753859594150,0.8112,3820.0,3819.9,22.52921]
[1753859594450,0.3018,3820.0,3819.9,22.52921]
[1753859594652,1.7734,3820.0,3819.9,0.52361]
[1753859594857,1.7734,3819.9,3819.8,0.52362]
[1753859595058,1.7734,3819.9,3819.8,21.66962]
[1753859595657,0.7019,3819.9,3819.8,21.146]
[1753859595860,1.22553,3819.9,3819.2,0.4287]
[1753859596053,1.22553,3819.9,3819.5,0.52366]
[1753859596359,0.7019,3819.5,3819.4,0.52368]
[1753859596559,1.7734,3819.5,3819.4,0.52368]
[1753859596755,1.7734,3819.5,3819.4,21.67368]